{"text_format":"1","workbook":"xlsx","n_sheets":6,"sheets":["Начало","Инструкция","Регистрация","Кроссворд","Анализ","Результат"],"not_rendered":{"charts":0,"images":4,"macros":1,"external_links":0,"defined_names":0,"comments":1,"pivot_tables":0},"unopened":[],"bounds":{"document_bytes":16777216,"sheet_cells":100000,"rows_first":2000,"rows_last":500,"rows_between":2000,"halvings":0,"cell_chars":16384,"cell_head_chars":4096},"cells_cut":0,"cells_raw":0,"read":"whole","date_system":"1900"}

{"sheet":"Начало","index":0,"n_rows":0,"n_cols":0,"rows_kept":0,"cut":false,"hidden":false,"merged":[]}

{"sheet":"Инструкция","index":1,"n_rows":0,"n_cols":0,"rows_kept":0,"cut":false,"hidden":false,"merged":[]}

{"sheet":"Регистрация","index":2,"n_rows":14,"n_cols":6,"rows_kept":14,"cut":false,"hidden":false,"merged":[[9,9,10,13],[9,5,10,8],[11,5,12,8],[13,5,14,8],[11,9,12,13],[13,9,14,13]]}
[]
[]
[]
[]
[]
[]
[]
[]
[]
[null,null,null,null,null,"Surname"]
[]
[null,null,null,null,null,"Name"]
[]
[null,null,null,null,null,"Form"]

{"sheet":"Кроссворд","index":3,"n_rows":0,"n_cols":0,"rows_kept":0,"cut":false,"hidden":false,"merged":[]}

{"sheet":"Анализ","index":4,"n_rows":28,"n_cols":7,"rows_kept":28,"cut":false,"hidden":true,"merged":[]}
[]
["Номера","Ответы","Правильные ответы","Баллы"]
[1,{"$f":"CONCATENATE(Кроссворд!U5,Кроссворд!U6,Кроссворд!U7,Кроссворд!U8,Кроссворд!U9)","v":""},"virus",{"$f":"IF(Таблица1[[#This Row],[Столбец2]]=Таблица1[[#This Row],[Столбец3]],1,0)","v":0}]
[2,{"$f":"CONCATENATE(Кроссворд!O2,Кроссворд!O3,Кроссворд!O4,Кроссворд!O5,Кроссворд!O6,Кроссворд!O7,Кроссворд!O8,Кроссворд!O9)","v":""},"internet",{"$f":"IF(Таблица1[[#This Row],[Столбец2]]=Таблица1[[#This Row],[Столбец3]],1,0)","v":0}]
[3,{"$f":"CONCATENATE(Кроссворд!G12,Кроссворд!G13,Кроссворд!G14,Кроссворд!G15,Кроссворд!G16,Кроссворд!G17,Кроссворд!G18,Кроссворд!G19)","v":""},"facebook",{"$f":"IF(Таблица1[[#This Row],[Столбец2]]=Таблица1[[#This Row],[Столбец3]],1,0)","v":0}]
[4,{"$f":"CONCATENATE(Кроссворд!F13,Кроссворд!G13,Кроссворд!H13,Кроссворд!I13,Кроссворд!J13,Кроссворд!K13)","v":""},"hacker",{"$f":"IF(Таблица1[[#This Row],[Столбец2]]=Таблица1[[#This Row],[Столбец3]],1,0)","v":0}]
[5,{"$f":"CONCATENATE(Кроссворд!K6,Кроссворд!K7,Кроссворд!K8,Кроссворд!K9,Кроссворд!K10,Кроссворд!K11,Кроссворд!K12,Кроссворд!K13)","v":""},"computer",{"$f":"IF(Таблица1[[#This Row],[Столбец2]]=Таблица1[[#This Row],[Столбец3]],1,0)","v":0}]
[6,{"$f":"CONCATENATE(Кроссворд!K6,Кроссворд!L6,Кроссворд!M6,Кроссворд!N6,Кроссворд!O6,Кроссворд!P6,Кроссворд!Q6,Кроссворд!R6,Кроссворд!S6,Кроссворд!T6,Кроссворд!U6,Кроссворд!V6,Кроссворд!W6)","v":""},"cyberbullying",{"$f":"IF(Таблица1[[#This Row],[Столбец2]]=Таблица1[[#This Row],[Столбец3]],1,0)","v":0}]
[7,{"$f":"CONCATENATE(Кроссворд!H8,Кроссворд!I8,Кроссворд!J8,Кроссворд!K8)","v":""},"spam",{"$f":"IF(Таблица1[[#This Row],[Столбец2]]=Таблица1[[#This Row],[Столбец3]],1,0)","v":0}]
[8,{"$f":"CONCATENATE(Кроссворд!M15,Кроссворд!M16,Кроссворд!M17,Кроссворд!M18,Кроссворд!M19)","v":""},"troll",{"$f":"IF(Таблица1[[#This Row],[Столбец2]]=Таблица1[[#This Row],[Столбец3]],1,0)","v":0}]
[9,{"$f":"CONCATENATE(Кроссворд!I11,Кроссворд!J11,Кроссворд!K11,Кроссворд!L11,Кроссворд!M11,Кроссворд!N11,Кроссворд!O11,Кроссворд!P11,Кроссворд!Q11,Кроссворд!R11)","v":""},"netiquette",{"$f":"IF(Таблица1[[#This Row],[Столбец2]]=Таблица1[[#This Row],[Столбец3]],1,0)","v":0}]
[10,{"$f":"CONCATENATE(Кроссворд!G16,Кроссворд!H16,Кроссворд!I16,Кроссворд!J16,Кроссворд!K16,Кроссворд!L16,Кроссворд!M16)","v":""},"browser",{"$f":"IF(Таблица1[[#This Row],[Столбец2]]=Таблица1[[#This Row],[Столбец3]],1,0)","v":0}]
[11,{"$f":"CONCATENATE(Кроссворд!N2,Кроссворд!O2,Кроссворд!P2,Кроссворд!Q2,Кроссворд!R2,Кроссворд!S2,Кроссворд!T2,Кроссворд!U2,)","v":""},"firewall",{"$f":"IF(Таблица1[[#This Row],[Столбец2]]=Таблица1[[#This Row],[Столбец3]],1,0)","v":0}]
[]
[]
[]
[]
[]
[]
[]
[null,null,"Правильно:",{"$f":"SUM(D3:D13)","v":0}]
[null,null,"Оценка:",{"$f":"IF(D21>=10,5,IF(D21>=8,4,IF(D21=7,3,IF(D21<7,2))))","v":2}]
[]
[]
[]
[]
[null,null,null,null,null,null,"Browser -A program that allows users to view Web pages."]
[null,null,null,null,null,null,"Firewall – This is a system that creates a special \"wall\" to keep out( не пустить) unwanted information, like spam and viruses, and unwanted people, like hackers."]

{"sheet":"Результат","index":5,"n_rows":20,"n_cols":10,"rows_kept":20,"cut":false,"hidden":false,"merged":[[11,9,12,13],[11,6,12,8],[13,9,14,13],[13,6,14,8],[15,6,16,8],[19,6,20,8],[19,9,20,13],[17,9,18,13],[17,6,18,8],[15,9,16,13]]}
[]
[]
[]
[]
[]
[]
[]
[]
[]
[]
[]
[null,null,null,null,null,null,"Surname",null,null,{"$f":"Регистрация!J10","v":0}]
[]
[null,null,null,null,null,null,"Name",null,null,{"$f":"Регистрация!J12","v":0}]
[]
[null,null,null,null,null,null,"Form",null,null,{"$f":"Регистрация!J14","v":0}]
[]
[null,null,null,null,null,null,"Correctly",null,null,{"$f":"Анализ!D21","v":0}]
[]
[null,null,null,null,null,null,"Mark",null,null,{"$f":"Анализ!D22","v":2}]